bitfinex-derivatives/quotes_SOLF0:USTF0_20240924
["timestamp","ask_amount","ask_price","bid_price","bid_amount"]
[1727137603385,18.31647209,144.68,144.6,14.93]
[1727137604088,18.31647209,144.68,144.6,18.3878]
[1727137605391,3.4571,144.64,144.61,3.4577]
[1727137605893,3.38647209,144.68,144.61,14.93]
[1727137606092,1.344,144.7,144.61,14.93]
[1727137606292,1.344,144.7,144.63,3.4572]
[1727137606488,1.344,144.7,144.61,14.93]
[1727137607489,1.344,144.7,144.63,3.4572]
[1727137608198,14.93,144.74,144.65,3.4567]
[1727137608398,16.3746,144.74,144.65,3.4567]
[1727137608589,16.3746,144.74,144.66,3.4564]
[1727137608590,3.456,144.69,144.66,3.4564]
[1727137609094,1.4446,144.74,144.68,3.456]
[1727137609698,3.4552,144.72,144.69,3.4558]
[1727137609893,3.4552,144.72,144.67,14.93]
[1727137610993,3.4552,144.72,144.68,3.4559]
[1727137611898,3.44478251,144.73,144.66,16.2904]
[1727137612096,14.93,144.74,144.66,16.2904]
[1727137612296,14.93,144.74,144.67,3.4562]
[1727137612600,18.39656524,144.74,144.67,3.4562]
[1727137612802,3.4556,144.7,144.67,3.4562]
[1727137613395,3.4556,144.7,144.66,19.7468]
[1727137614594,3.4558,144.69,144.66,19.7468]
[1727137615597,3.4556,144.7,144.67,3.4562]
[1727137615796,3.46656524,144.74,144.68,14.93]
[1727137615998,16.286,144.78,144.7,14.93]
[1727137616202,3.4545,144.75,144.71,18.3851]
[1727137616495,3.44337665,144.76,144.71,18.3851]
[1727137616802,3.4549,144.73,144.7,14.93]
[1727137617504,3.4549,144.73,144.7,18.3855]
[1727137617796,3.4547,144.74,144.7,14.93]
[1727137618202,3.4547,144.74,144.71,3.4552]
[1727137621503,14.93,144.8,144.72,14.93]
[1727137622000,14.93,144.8,144.71,1.3171]
[1727137622001,14.93,144.78,144.71,1.3171]
[1727137622303,14.93,144.78,144.71,3.4552]
[1727137622897,3.4547,144.74,144.71,3.4552]
[1727137625302,3.4549,144.73,144.7,18.3855]
[1727137625804,3.4549,144.73,144.7,3.4555]
[1727137626207,3.4549,144.73,144.69,3.4557]
[1727137629709,3.4548,144.74,144.7,14.93]
[1727137629913,1.3954,144.78,144.7,14.93]
[1727137630303,3.4546,144.75,144.71,3.4552]
[1727137631214,14.93,144.85,144.74,14.93]
[1727137631402,16.2603,144.85,144.77,14.93]
[1727137631606,19.7750933,144.85,144.77,14.93]
[1727137633403,19.7750933,144.85,144.75,14.93]
[1727137634116,19.7750933,144.85,144.76,14.93]
[1727137634912,4.8450933,144.85,144.76,14.93]
[1727137635123,4.8450933,144.85,144.77,1.3681]
[1727137635305,4.8450933,144.85,144.77,2.6894]
[1727137635500,4.8450933,144.85,144.77,6.1432]
[1727137636615,3.4531,144.81,144.77,6.1432]
[1727137637008,19.7750933,144.85,144.77,2.6894]
[1727137637614,19.7750933,144.85,144.75,3.4543]
[1727137637915,14.93,144.83,144.75,3.4543]
[1727137638313,14.93,144.83,144.74,14.93]
[1727137638913,3.4538,144.78,144.74,14.93]
[1727137639425,3.4538,144.78,144.74,16.3784]
[1727137639719,3.4538,144.78,144.75,3.4542]
[1727137644721,14.93,144.83,144.74,2.8664]
[1727137645120,3.4542,144.76,144.74,2.8664]
[1727137646017,3.4544,144.75,144.74,2.8664]
[1727137646721,3.4544,144.75,144.74,1.4484]
[1727137647314,3.4544,144.75,144.72,18.385]
[1727137648017,3.4542,144.76,144.72,18.385]
[1727137648212,14.93,144.81,144.72,14.93]
[1727137648413,14.93,144.83,144.72,14.93]
[1727137648613,14.93,144.83,144.73,1.4116]
[1727137649122,14.93,144.83,144.74,3.4546]
[1727137649312,14.93,144.83,144.74,4.7746]
[1727137651019,3.4541,144.77,144.74,4.7746]
[1727137651220,3.38102149,144.77,144.7,14.93]
[1727137651422,14.93,144.79,144.7,16.25]
[1727137652219,3.4547,144.74,144.71,3.4552]
[1727137652410,3.4547,144.74,144.7,16.25]
[1727137653010,3.4547,144.74,144.71,3.4553]
[1727137653323,3.4545,144.75,144.71,3.4553]
[1727137654620,3.4545,144.75,144.72,3.455]
[1727137655924,3.4547,144.74,144.71,3.4552]
[1727137656423,3.4544,144.75,144.72,3.455]
[1727137658327,3.4542,144.76,144.74,9.56]
[1727137658725,3.454,144.77,144.74,13.0146]
[1727137658926,9.56,144.8,144.7,1.32]
[1727137659137,9.56,144.81,144.76,9.56]
[1727137659326,3.4538,144.78,144.76,9.56]
[1727137660329,3.4538,144.78,144.74,14.93]
[1727137660924,3.4538,144.78,144.74,18.3844]
[1727137661726,3.4535,144.79,144.74,14.93]
[1727137662925,3.4535,144.79,144.76,3.4541]
[1727137663631,3.4533,144.8,144.76,3.4541]
[1727137664835,3.4534,144.79,144.76,3.4541]
[1727137666735,14.93,144.87,144.77,14.93]
[1727137667145,3.4527,144.82,144.77,14.93]
[1727137668835,3.4527,144.82,144.78,3.4535]
[1727137670546,6.9669933,144.85,144.77,14.93]
[1727137670752,3.4522,144.85,144.81,18.3829]
[1727137672244,3.4522,144.85,144.82,3.4527]
[1727137677448,3.50348829,144.88,144.81,14.93]
[1727137677754,14.93,144.9,144.79,14.93]
[1727137678056,18.34990402,144.9,144.82,14.93]
[1727137678659,3.4521,144.85,144.82,18.3825]
[1727137678953,3.4521,144.85,144.82,14.93]
[1727137679659,3.4523,144.84,144.81,3.4529]
[1727137680153,18.34990402,144.9,144.8,18.3831]
[1727137680456,18.34990402,144.9,144.8,14.93]
[1727137680858,3.4521,144.85,144.81,3.4529]
[1727137681953,3.41990402,144.9,144.84,14.93]
[1727137682145,2.8163,144.91,144.84,14.93]
[1727137682345,12.3563,144.91,144.86,9.54]
[1727137682753,15.86981011,144.91,144.86,9.54]
[1727137683848,3.4516,144.87,144.86,9.54]
[1727137684561,15.86981011,144.91,144.86,9.54]
[1727137684860,4.87761011,144.91,144.87,9.54]
[1727137685562,3.451,144.9,144.88,9.54]
[1727137687051,3.41380024,144.92,144.82,1.3139]
[1727137687052,9.54,144.91,144.82,1.3139]
[1727137687259,9.54,144.92,144.87,9.54]
[1727137687657,3.4512,144.89,144.87,9.54]
[1727137688549,3.4513,144.88,144.87,9.54]
[1727137689964,3.4515,144.87,144.84,3.4521]
[1727137690166,3.4515,144.87,144.85,9.54]
[1727137690465,13.04943177,144.91,144.85,9.54]
[1727137691558,3.4516,144.87,144.85,9.54]
[1727137691761,13.04943177,144.91,144.85,9.54]
[1727137694866,3.4516,144.87,144.85,9.54]
[1727137695567,3.4516,144.87,144.86,9.54]
[1727137697367,3.452,144.85,144.83,3.4523]
[1727137697665,3.452,144.85,144.84,9.54]
[1727137699566,13.04943177,144.91,144.84,9.54]
[1727137699766,9.54,144.91,144.86,9.54]
[1727137700066,3.4516,144.87,144.86,9.54]
[1727137704377,9.54,144.89,144.82,1.3139]
[1727137704671,9.54,144.88,144.83,9.54]
[1727137705074,3.4523,144.84,144.83,9.54]
[1727137706072,3.452,144.85,144.83,9.54]
[1727137706266,3.452,144.85,144.84,9.54]
[1727137709368,3.4523,144.84,144.83,9.54]
[1727137710066,9.54,144.86,144.81,90.69823781]
[1727137711071,3.4527,144.82,144.81,90.69823781]
[1727137715272,9.54,144.88,144.81,90.69823781]
[1727137715577,9.54,144.88,144.83,9.54]
[1727137716680,3.4521,144.85,144.83,9.54]
[1727137719481,3.4522,144.84,144.83,9.54]
[1727137721383,3.4521,144.85,144.83,9.54]
[1727137721581,3.4521,144.85,144.84,9.54]
[1727137722385,3.4516,144.87,144.84,9.54]
[1727137722682,9.54,144.92,144.87,9.54]
[1727137722879,12.91742626,144.92,144.87,9.54]
[1727137723482,3.4513,144.88,144.87,9.54]
[1727137724478,9.54,144.9,144.86,9.54]
[1727137724680,2.7133,144.94,144.85,9.54]
[1727137724985,9.54,144.9,144.85,9.54]
[1727137725185,13.07353595,144.9,144.85,9.54]
[1727137725784,3.4516,144.87,144.85,9.54]
[1727137726186,13.07353595,144.9,144.82,4.2274]
[1727137726187,9.54,144.89,144.82,4.2274]
[1727137726488,9.54,144.89,144.83,9.54]
[1727137726679,9.54,144.9,144.85,9.54]
[1727137726878,3.4516,144.87,144.85,9.54]
[1727137730484,3.4513,144.88,144.86,9.54]
[1727137730685,3.43946405,144.9,144.87,9.54]
[1727137731382,3.4512,144.89,144.87,9.54]
[1727137732295,3.4506,144.91,144.88,9.54]
[1727137732483,3.4506,144.91,144.89,9.54]
[1727137733194,3.4503,144.92,144.9,9.54]
[1727137733990,3.4503,144.92,144.89,3.451]
[1727137734289,3.4503,144.92,144.9,9.54]
[1727137734488,3.4505,144.91,144.9,9.54]
[1727137734992,9.54,144.95,144.9,9.54]
[1727137735589,3.4504,144.92,144.9,9.54]
[1727137735897,1.4349,144.98,144.91,9.54]
[1727137736197,10.9749,144.98,144.93,9.54]
[1727137737589,9.54,144.96,144.91,9.54]
[1727137738488,3.4497,144.95,144.91,9.54]
[1727137738695,9.54,144.96,144.91,12.9905]
[1727137738896,9.54,144.96,144.91,3.4505]
[1727137739101,3.45,144.94,144.92,9.54]
[1727137739595,9.54,144.96,144.92,9.54]
[1727137739797,3.45,144.94,144.92,9.54]
[1727137739996,9.54,144.96,144.92,9.54]
[1727137740203,1.4349,144.98,144.9,9.54]
[1727137740204,9.54,144.95,144.9,9.54]
[1727137740399,3.4505,144.92,144.9,9.54]
[1727137743205,3.4502,144.93,144.91,9.54]
[1727137746905,3.4503,144.92,144.9,9.54]
[1727137747303,9.54,144.96,144.91,9.54]
[1727137748502,3.45,144.94,144.91,12.9905]
[1727137748906,9.54,144.96,144.91,9.54]
[1727137749205,9.54,144.96,144.88,1.3235]
[1727137749403,9.54,144.95,144.9,9.54]
[1727137751401,3.4502,144.93,144.9,9.54]
[1727137752408,3.4503,144.92,144.9,9.54]
[1727137754213,1.4349,144.98,144.91,9.54]
[1727137754406,9.54,144.97,144.93,9.54]
[1727137754816,3.4498,144.94,144.93,9.54]
[1727137758317,9.54,144.96,144.91,9.54]
[1727137758813,9.54,144.97,144.91,9.54]
[1727137759433,9.54,144.96,144.91,9.54]
[1727137760509,3.4503,144.93,144.91,9.54]
[1727137761214,3.45,144.94,144.91,9.54]
[1727137762913,3.45,144.94,144.91,12.9904]
[1727137763314,3.4501,144.93,144.91,9.54]
[1727137766614,3.4499,144.94,144.92,9.54]
[1727137779520,9.54,144.97,144.88,1.3235]
[1727137779833,9.54,144.97,144.91,9.54]
[1727137780826,3.4502,144.93,144.91,9.54]
[1727137785820,3.50051777,144.92,144.87,2.7934]
[1727137786124,9.54,144.92,144.87,12.3334]
[1727137786326,3.4511,144.89,144.87,12.3334]
[1727137786627,9.54,144.93,144.88,9.54]
[1727137787128,3.4509,144.9,144.88,9.54]
[1727137788433,3.451,144.89,144.88,9.54]
[1727137788927,3.451,144.89,144.87,12.3334]
[1727137791628,3.4513,144.88,144.87,1.3558]
[1727137791841,9.54,144.89,144.83,2.8296]
[1727137792033,9.54,144.89,144.84,9.54]
[1727137792339,3.4517,144.87,144.84,12.9922]
[1727137793634,3.4517,144.87,144.85,9.54]
[1727137799547,3.4517,144.87,144.86,9.54]
[1727137801246,9.54,144.93,144.86,9.54]
[1727137801445,8.2336,144.97,144.83,2.8296]
[1727137801446,3.37189226,144.92,144.88,9.54]
[1727137801651,3.4509,144.9,144.88,9.54]
[1727137803345,3.4506,144.91,144.88,12.9912]
[1727137803754,3.4508,144.9,144.88,12.9912]
[1727137804254,3.451,144.89,144.83,2.8296]
[1727137804442,9.54,144.91,144.87,9.54]
[1727137805054,3.4513,144.88,144.87,9.54]
[1727137808557,8.2336,144.97,144.87,9.54]
[1727137808748,9.54,144.94,144.89,9.54]
[1727137809254,3.4506,144.91,144.89,9.54]
[1727137809853,3.4504,144.92,144.89,12.991]
[1727137813656,3.4506,144.91,144.89,12.991]
[1727137815958,3.4506,144.91,144.89,9.54]
[1727137816557,3.4506,144.91,144.9,9.54]
[1727137816759,1.3351,144.97,144.9,9.54]
[1727137816961,9.54,144.97,144.93,9.54]
[1727137817366,3.4501,144.94,144.93,9.54]
[1727137820465,3.4496,144.95,144.93,9.54]
[1727137820764,3.4496,144.95,144.88,4.1578]
[1727137820765,9.54,144.99,144.94,9.54]
[1727137820958,1.3505,145.01,144.95,9.54]
[1727137821160,9.54,145.0,144.95,9.54]
[1727137821861,3.4494,144.96,144.95,9.54]
[1727137824464,3.4494,144.96,144.94,9.54]
[1727137825866,3.4496,144.95,144.91,3.4505]
[1727137826068,9.54,144.98,144.93,9.54]
[1727137828367,3.4498,144.95,144.93,9.54]
[1727137829877,9.54,144.96,144.88,4.1578]
[1727137830076,9.54,144.96,144.91,9.54]
[1727137830375,9.54,144.97,144.93,9.54]
[1727137830571,1.3505,145.01,144.96,9.54]
[1727137830777,9.54,145.0,144.96,9.54]
[1727137831677,3.50048315,144.99,144.96,9.54]
[1727137831877,3.4492,144.97,144.96,9.54]
[1727137833579,10.8768,145.04,144.96,9.54]
[1727137833781,10.8768,145.04,144.99,9.54]
[1727137833972,3.4921004,145.03,144.99,9.54]
[1727137834875,3.4921004,145.03,144.88,10.1522935]
[1727137834876,9.54,145.02,144.97,9.54]
[1727137835275,3.4489,144.98,144.97,9.54]
[1727137836881,12.94820828,145.0,144.9,5.99264168]
[1727137837085,9.54,145.0,144.94,9.54]
[1727137837490,3.4495,144.96,144.94,9.54]
[1727137837888,3.4495,144.96,144.95,9.54]
[1727137838385,3.4492,144.97,144.95,9.54]
[1727137840590,3.4492,144.97,144.96,9.54]
[1727137841685,3.449,144.98,144.96,9.54]
[1727137841991,3.38256608,145.01,144.97,9.54]
[1727137842192,3.4489,144.98,144.97,9.54]
[1727137844077,3.4487,144.99,144.97,9.54]
[1727137844678,3.4484,145.01,144.98,3.4489]
[1727137844882,1.4106,145.07,145.0,9.54]
[1727137844883,3.45755693,145.06,145.0,9.54]
[1727137845186,3.45755693,145.06,144.89,5.98728483]
[1727137845187,3.45755693,145.06,145.02,9.54]
[1727137845587,3.4476,145.04,145.02,9.54]
[1727137845977,3.4473,145.05,145.03,9.54]
[1727137849782,1.3916,145.1,145.03,9.54]
[1727137849995,1.3916,145.1,145.06,9.54]
[1727137850296,9.54,145.11,145.07,9.54]
[1727137850484,3.4467,145.08,145.07,9.54]
[1727137851189,3.4467,145.07,145.06,9.54]
[1727137851395,9.54,145.09,145.03,9.54]
[1727137851598,9.54,145.07,145.03,9.54]
[1727137851786,3.4474,145.05,145.03,9.54]
[1727137852795,3.4474,145.05,145.04,9.54]
[1727137853194,3.4471,145.06,145.04,9.54]
[1727137855694,3.4471,145.06,145.05,9.54]
[1727137857402,3.4474,145.05,145.03,9.54]
[1727137857802,3.447,145.06,145.04,9.54]
[1727137861012,3.447,145.06,145.05,9.54]
[1727137861402,3.4469,145.07,145.05,9.54]
[1727137861705,3.4469,145.07,145.06,9.54]
[1727137862202,4.89697266,145.14,145.06,9.54]
[1727137862407,14.43697266,145.14,145.09,9.54]
[1727137863408,3.4461,145.1,145.09,9.54]
[1727137864699,9.54,145.12,145.06,3.4469]
[1727137864898,9.54,145.11,145.06,9.54]
[1727137865296,3.4464,145.09,145.08,9.54]
[1727137865506,9.54,145.13,145.08,9.54]
[1727137865802,9.54,145.13,145.09,9.54]
[1727137866210,3.446,145.11,145.09,9.54]
[1727137866403,3.446,145.11,145.1,9.54]
[1727137867407,3.446,145.11,145.08,9.54]
[1727137868810,3.446,145.11,145.09,9.54]
[1727137873017,3.4456,145.12,145.1,9.54]
[1727137873815,3.4458,145.11,145.09,9.54]
[1727137875122,12.99357266,145.14,145.04,2.6965]
[1727137875325,12.99357266,145.14,145.09,9.54]
[1727137875725,12.99357266,145.14,145.04,2.6965]
[1727137875726,3.4459,145.11,145.1,9.54]
[1727137876222,3.4457,145.12,145.1,9.54]
[1727137876933,3.45357266,145.14,145.1,9.54]
[1727137877112,9.54,145.15,145.1,9.54]
[1727137877316,3.4457,145.12,145.1,9.54]
[1727137877918,13.0085927,145.14,145.1,9.54]
[1727137878115,1.4134,145.16,145.1,9.54]
[1727137878314,1.4134,145.16,145.13,9.54]
[1727137878618,3.4453,145.14,145.13,9.54]
[1727137879819,12.3478,145.22,145.13,9.54]
[1727137880020,12.3478,145.22,145.16,9.54]
[1727137880220,3.4442,145.18,145.16,9.54]
[1727137881416,3.4441,145.19,145.16,9.54]
[1727137881631,3.4441,145.19,145.18,9.54]
[1727137883230,3.4437,145.2,145.18,9.54]
[1727137883528,2.6576,145.27,145.19,9.54]
[1727137883722,3.4432,145.22,145.21,9.54]
[1727137885825,1.3332,145.28,145.21,9.54]
[1727137885826,9.54,145.28,145.21,9.54]
[1727137886030,9.54,145.28,145.24,9.54]
[1727137887319,3.43997793,145.29,145.24,9.54]
[1727137887519,9.54,145.29,145.25,9.54]
[1727137887819,3.40164912,145.28,145.25,9.54]
[1727137888226,9.54,145.29,145.25,9.54]
[1727137888426,3.4422,145.26,145.25,9.54]
[1727137889726,3.4421,145.27,145.25,9.54]
[1727137889925,0.979945,145.3,145.26,9.54]
[1727137890123,0.979945,145.3,145.28,9.54]
[1727137890719,3.4415,145.29,145.28,9.54]
[1727137891123,0.979945,145.3,145.27,9.54]
[1727137891527,0.979945,145.3,145.26,9.54]
[1727137891733,3.4422,145.27,145.21,1.3993]
[1727137892037,3.4422,145.27,145.26,9.54]
[1727137901345,3.4422,145.27,145.2,2.6841]
[1727137901346,9.54,145.27,145.2,2.6841]
[1727137901645,9.54,145.26,145.21,9.54]
[1727137901838,9.54,145.26,145.19,80.94386835]
[1727137902040,9.54,145.23,145.12,2.7979]
[1727137902244,3.51892141,145.22,145.18,9.54]
[1727137902542,3.4439,145.19,145.18,9.54]
[1727137904654,3.51892141,145.22,145.12,4.2312]
[1727137904956,9.54,145.21,145.16,9.54]
[1727137905246,3.4444,145.17,145.16,9.54]
[1727137906546,9.54,145.23,145.16,9.54]
[1727137906852,9.54,145.23,145.18,9.54]
[1727137907254,12.98359427,145.23,145.18,9.54]
[1727137907656,3.4441,145.19,145.18,9.54]
[1727137908748,3.4443,145.18,145.17,9.54]
[1727137913255,3.444,145.19,145.17,9.54]
[1727137913556,3.444,145.19,145.18,9.54]
[1727137913758,12.98359427,145.23,145.18,9.54]
[1727137913954,9.54,145.22,145.17,9.54]
[1727137914655,12.98279772,145.22,145.17,9.54]
[1727137914852,3.4443,145.18,145.17,9.54]
[1727137915647,12.98279772,145.22,145.13,3.4453]
[1727137915852,9.54,145.21,145.16,9.54]
[1727137916761,13.07043363,145.21,145.16,9.54]
[1727137917257,3.4443,145.18,145.16,9.54]
[1727137917452,3.4443,145.18,145.17,9.54]
[1727137922755,3.444,145.19,145.17,9.54]
[1727137922955,1.3868,145.25,145.18,9.54]
[1727137923162,1.3868,145.25,145.12,4.2312]
[1727137923163,1.3868,145.25,145.21,9.54]
[1727137923355,3.4432,145.22,145.21,9.54]
[1727137925459,3.4431,145.23,145.21,9.54]
[1727137925969,1.4527,145.28,145.22,9.54]
[1727137926269,10.9927,145.28,145.22,9.54]
[1727137927568,10.519945,145.3,145.25,9.54]
[1727137927764,0.979945,145.3,145.25,9.54]
[1727137927969,10.519945,145.3,145.25,9.54]
[1727137928667,0.979945,145.3,145.27,9.54]
[1727137929371,3.442,145.28,145.27,9.54]
[1727137930359,0.979945,145.3,145.26,9.54]
[1727137931567,3.4419,145.28,145.26,9.54]
[1727137931771,0.979945,145.3,145.22,4.1844]
[1727137931957,0.979945,145.3,145.25,9.54]
[1727137932566,3.4421,145.27,145.25,9.54]
[1727137933063,3.4421,145.27,145.26,9.54]
[1727137933571,3.4419,145.28,145.26,9.54]
[1727137935668,3.4419,145.28,145.27,9.54]
[1727137937269,10.519945,145.3,145.22,4.1844]
[1727137937568,10.519945,145.3,145.25,9.54]
[1727137938166,3.4422,145.27,145.25,9.54]
[1727137938880,9.54,145.26,145.22,1.3818]
[1727137939094,9.54,145.24,145.19,9.54]
[1727137939400,9.54,145.21,145.16,90.50287993]
[1727137939589,13.04344948,145.21,145.16,90.50287993]
[1727137939969,9.54,145.2,145.16,90.50287993]
[1727137940181,3.4443,145.18,145.16,90.50287993]
[1727137941173,3.4437,145.2,145.17,9.54]
[1727137942384,13.03345279,145.23,145.17,9.54]
[1727137942385,3.444,145.19,145.17,9.54]
[1727137943580,3.4438,145.2,145.18,9.54]
[1727137944382,3.4434,145.21,145.18,9.54]
[1727137944577,3.4434,145.21,145.2,9.54]
[1727137947874,1.3592,145.28,145.2,9.54]
[1727137948077,9.54,145.26,145.2,9.54]
[1727137948786,3.4433,145.22,145.2,9.54]
[1727137949975,10.8992,145.28,145.21,9.54]
[1727137950176,9.54,145.26,145.21,9.54]
[1727137950382,9.54,145.26,145.2,9.54]
[1727137951183,3.4431,145.23,145.2,9.54]
[1727137952683,3.4431,145.23,145.22,9.54]
[1727137953181,3.4428,145.24,145.22,9.54]
[1727137953384,3.4428,145.24,145.23,9.54]
[1727137954281,3.4428,145.24,145.22,9.54]
[1727137956478,3.4426,145.25,145.23,9.54]
[1727137957089,9.54,145.26,145.16,80.96287993]
[1727137957281,9.54,145.26,145.21,9.54]
[1727137957679,3.4432,145.23,145.21,9.54]
[1727137958185,3.4432,145.22,145.21,9.54]
[1727137959286,9.54,145.26,145.16,80.96287993]
[1727137959287,3.4438,145.2,145.17,3.4443]
[1727137959505,13.02122631,145.24,145.19,9.54]
[1727137959799,3.4443,145.18,145.17,9.54]
[1727137960181,3.4443,145.18,145.16,90.50287993]
[1727137960684,3.4444,145.17,145.16,90.50287993]
[1727137960881,3.4444,145.17,145.16,80.96287993]
[1727137962492,3.4441,145.18,145.16,90.50287993]
[1727137965693,3.4444,145.17,145.16,80.96287993]
[1727137966796,3.4443,145.18,145.16,90.50287993]
[1727137967094,3.4443,145.18,145.17,9.54]
[1727137967696,3.4444,145.17,145.16,90.50287993]
[1727137969390,3.4444,145.17,145.16,80.96287993]
[1727137969586,3.4444,145.17,145.12,4.0]
[1727137969892,3.4444,145.17,145.13,9.54]
[1727137969893,3.4452,145.14,145.13,9.54]
[1727137970099,9.54,145.19,145.13,9.54]
[1727137970297,9.54,145.2,145.12,6.1241]
[1727137970593,9.54,145.2,145.15,9.54]
[1727137971800,3.4446,145.16,145.15,9.54]
[1727137976999,3.4449,145.15,145.13,9.54]
[1727137978101,3.4451,145.14,145.12,9.54]
[1727137979507,3.4449,145.15,145.13,9.54]
[1727137980409,3.4449,145.15,145.13,12.9853]
[1727137980607,3.4449,145.15,145.13,9.54]
[1727137980901,9.54,145.18,145.12,9.54]
[1727137981503,3.4452,145.14,145.12,9.54]
[1727137982606,3.445,145.15,145.13,9.54]
[1727137982907,9.54,145.19,145.14,9.54]
[1727137984407,3.4448,145.16,145.14,9.54]
[1727137987822,9.54,145.18,145.13,9.54]
[1727137988620,3.445,145.15,145.13,9.54]
[1727137990323,3.4451,145.14,145.13,9.54]
[1727137990518,9.54,145.16,145.11,12.9857]
[1727137990919,9.54,145.15,145.09,4.8974]
[1727137991120,9.54,145.13,145.08,81.00937199]
[1727137991817,12.95466456,145.13,145.08,81.00937199]
[1727137992522,3.4464,145.09,145.06,9.54]
[1727137992914,9.54,145.11,145.06,9.54]
[1727137993722,9.54,145.09,145.03,10.9513]
[1727137994023,9.54,145.08,145.03,10.9513]
[1727137995127,9.54,145.1,145.05,9.54]
[1727137995421,13.07359084,145.1,145.05,9.54]
[1727137996121,3.4466,145.08,145.05,9.54]
[1727137996823,3.4463,145.09,145.06,9.54]
[1727137997221,9.54,145.11,145.06,9.54]
[1727137997819,9.54,145.1,145.05,9.54]
[1727137998428,3.4469,145.07,145.05,9.54]
[1727137998931,3.4469,145.07,145.04,9.54]
[1727138000822,3.4471,145.06,145.04,9.54]
[1727138001215,3.49841357,145.12,145.03,1.4113]
[1727138001417,9.54,145.07,145.02,9.54]
[1727138001620,1.3955,145.14,145.0,1.3408]
[1727138001621,9.54,145.05,145.0,1.3408]
[1727138001820,1.3955,145.14,144.98,9.54]
[1727138001821,9.54,145.03,144.98,9.54]
[1727138002125,9.54,145.0,144.94,13.7223]
[1727138002529,3.4496,144.96,144.94,12.2812]
[1727138002829,3.4496,144.96,144.94,10.9337]
[1727138003031,3.4492,144.97,144.94,10.9337]
[1727138004323,3.4492,144.97,144.94,1.3937]
[1727138004530,3.4489,144.98,144.94,4.8434]
[1727138005425,14.91,144.99,144.88,2.7886]
[1727138005631,14.91,144.97,144.89,1.3974]
[1727138005936,3.4494,144.96,144.92,3.4503]
[1727138006232,14.91,144.97,144.9,14.91]
[1727138006430,3.4497,144.95,144.91,3.4503]
[1727138006732,14.91,144.99,144.91,14.91]
[1727138006930,7.52615003,145.0,144.91,14.91]
[1727138007235,2.7493,145.0,144.91,14.91]
[1727138007629,3.4489,144.98,144.94,3.4497]
[1727138007828,2.7493,145.0,144.91,14.91]
[1727138008030,18.31648723,145.01,144.94,14.91]
[1727138008229,18.31648723,145.01,144.96,14.91]
[1727138008230,3.4483,145.01,144.96,14.91]
[1727138009827,3.4483,145.01,144.98,3.4488]
[1727138010634,3.4483,145.01,144.97,3.449]